bitfinex/quotes_SOLUSD_20251030
["timestamp","ask_amount","ask_price","bid_price","bid_amount"]
[1761815207144,20.592,195.29,195.24,3.15595766]
[1761815207428,3.40888449,195.31,195.26,3.15595766]
[1761815207606,20.592,195.29,195.26,3.15595766]
[1761815207814,20.592,195.29,195.27,0.72]
[1761815208220,4.10888449,195.31,195.27,0.72]
[1761815209016,3.40888449,195.31,195.27,0.72]
[1761815209334,3.40888449,195.31,195.26,3.15595766]
[1761815209527,0.7,195.3,195.25,8.27756309]
[1761815209731,0.7,195.3,195.27,0.72]
[1761815210930,6.56484215,195.31,195.27,0.72]
[1761815211129,7.26484215,195.31,195.27,0.72]
[1761815212032,4.10888449,195.31,195.27,0.72]
[1761815212443,3.40888449,195.31,195.27,3.87595766]
[1761815212618,4.10888449,195.31,195.27,3.87595766]
[1761815212942,3.40888449,195.31,195.28,0.72]
[1761815213145,3.40888449,195.31,195.28,3.87595766]
[1761815213340,3.41990555,195.31,195.29,3.15595766]
[1761815213543,3.41990555,195.31,195.29,3.87595766]
[1761815213842,3.41990555,195.31,195.3,0.72]
[1761815214450,24.87048562,195.36,195.3,3.87595766]
[1761815214451,3.41990555,195.34,195.3,3.87595766]
[1761815214757,3.41990555,195.35,195.32,3.15595766]
[1761815214923,3.41990555,195.36,195.32,3.15595766]
[1761815215128,4.97848562,195.37,195.33,0.72]
[1761815215129,7.22228601,195.35,195.33,0.72]
[1761815215429,4.11990555,195.36,195.31,3.87595766]
[1761815215622,7.22404822,195.35,195.31,3.87595766]
[1761815215827,3.41990555,195.35,195.32,0.72]
[1761815216237,3.80598313,195.34,195.32,0.72]
[1761815216457,7.22588868,195.34,195.32,0.72]
[1761815216775,3.41990555,195.36,195.32,3.87595766]
[1761815216960,7.22589007,195.35,195.32,3.87595766]
[1761815217247,7.22589007,195.34,195.33,0.72]
[1761815217430,3.41990555,195.36,195.33,0.72]
[1761815217627,7.22826564,195.35,195.33,0.72]
[1761815217827,3.41990555,195.34,195.33,0.72]
[1761815218027,3.41990555,195.36,195.33,0.72]
[1761815218239,7.22826628,195.35,195.33,0.72]
[1761815218423,3.41990555,195.36,195.33,0.72]
[1761815218619,7.22875039,195.35,195.33,0.72]
[1761815218836,3.41990555,195.36,195.33,0.72]
[1761815219038,7.22875039,195.35,195.33,0.72]
[1761815219245,3.41990555,195.36,195.33,0.72]
[1761815219440,7.22951473,195.35,195.33,0.72]
[1761815219639,3.41990555,195.36,195.33,0.72]
[1761815219858,7.22951547,195.35,195.33,0.72]
[1761815220039,3.41990555,195.36,195.33,0.72]
[1761815220234,104.1,195.37,195.33,0.72]
[1761815220235,7.22951736,195.35,195.33,0.72]
[1761815220439,3.41990555,195.36,195.33,0.72]
[1761815220637,7.23017725,195.35,195.32,3.15595766]
[1761815220952,7.23017725,195.35,195.3,5.12029047]
[1761815220953,3.41990555,195.36,195.33,3.87595766]
[1761815221438,3.41990555,195.36,195.34,0.72]
[1761815223560,3.41990555,195.36,195.33,3.15595766]
[1761815223861,3.41990555,195.36,195.33,3.87595766]
[1761815224236,3.41990555,195.36,195.34,0.72]
[1761815224431,3.41990555,195.36,195.34,3.87595766]
[1761815224845,3.41990555,195.36,195.34,0.72]
[1761815225443,103.4,195.37,195.34,0.72]
[1761815225647,103.4,195.37,195.33,3.15595766]
[1761815225648,3.15595766,195.35,195.28,3.87595766]
[1761815225833,5.81891718,195.36,195.27,3.15595766]
[1761815226037,3.15595766,195.33,195.27,3.15595766]
[1761815226242,3.15595766,195.33,195.28,0.72]
[1761815226454,3.87595766,195.33,195.28,0.72]
[1761815226637,0.72,195.32,195.28,0.72]
[1761815227738,3.15595766,195.31,195.25,0.67]
[1761815227941,12.79824889,195.34,195.25,0.67]
[1761815227942,3.87595766,195.3,195.25,0.67]
[1761815228148,3.15595766,195.29,195.25,0.67]
[1761815228466,3.15595766,195.26,195.19,3.82595766]
[1761815228673,0.72,195.29,195.19,0.67]
[1761815228674,3.15595766,195.24,195.19,0.67]
[1761815228854,3.15595766,195.23,195.19,0.67]
[1761815229049,3.87595766,195.24,195.19,0.67]
[1761815229264,0.72,195.24,195.19,3.82595766]
[1761815229469,23.74795766,195.25,195.2,0.67]
[1761815229846,0.72,195.24,195.2,3.82595766]
[1761815230062,24.46795766,195.25,195.2,3.82595766]
[1761815230257,0.72,195.24,195.2,3.82595766]
[1761815230653,0.72,195.24,195.2,0.67]
[1761815231972,20.592,195.25,195.2,3.82595766]
[1761815232341,3.15595766,195.26,195.21,3.82595766]
[1761815232547,23.74795766,195.27,195.21,3.82595766]
[1761815232759,3.41970802,195.26,195.22,0.67]
[1761815233263,3.15595766,195.29,195.24,3.15595766]
[1761815233572,3.87595766,195.29,195.22,0.67]
[1761815233795,29.58857503,195.29,195.23,3.15595766]
[1761815233953,7.24702998,195.28,195.22,3.82595766]
[1761815234156,12.36797133,195.28,195.22,3.15595766]
[1761815234354,3.82595766,195.27,195.21,3.15595766]
[1761815235447,3.82595766,195.27,195.21,3.85595766]
[1761815236570,3.82595766,195.27,195.21,3.15595766]
[1761815236772,0.67,195.27,195.22,3.15595766]
[1761815236973,0.67,195.27,195.22,3.85595766]
[1761815237179,0.67,195.27,195.23,0.7]
[1761815238762,6.57702998,195.28,195.23,0.7]
[1761815239307,7.24702998,195.28,195.23,0.7]
[1761815239990,0.67,195.27,195.23,0.7]
[1761815240378,6.57702998,195.28,195.23,0.7]
[1761815240696,7.24702998,195.28,195.23,0.7]
[1761815241063,7.24702998,195.28,195.22,3.15595766]
[1761815241384,3.15595766,195.25,195.2,0.7]
[1761815241886,7.24702998,195.25,195.2,0.7]
[1761815242262,7.24702998,195.25,195.2,3.85595766]
[1761815242464,7.24702998,195.25,195.19,5.122975]
[1761815242465,7.24702998,195.25,195.21,0.7]
[1761815243281,4.09107232,195.25,195.21,0.7]
[1761815243592,0.67,195.24,195.2,3.15595766]
[1761815243797,0.67,195.24,195.18,6.89098999]
[1761815243987,3.15595766,195.23,195.18,6.89098999]
[1761815244195,0.67,195.22,195.18,7.59098999]
[1761815245202,8.94852518,195.22,195.18,6.89098999]
[1761815245401,12.3695975,195.22,195.18,6.89098999]
[1761815245614,0.67,195.21,195.18,6.89098999]
[1761815246291,8.94877151,195.21,195.18,6.89098999]
[1761815246489,3.82595766,195.2,195.18,6.89098999]
[1761815246976,0.67,195.19,195.18,6.89098999]
[1761815248414,8.94877151,195.21,195.18,6.89098999]
[1761815248596,0.67,195.2,195.18,6.89098999]
[1761815249014,3.82595766,195.2,195.18,6.89098999]
[1761815249696,0.67,195.19,195.18,6.89098999]
[1761815250018,3.82595766,195.2,195.18,6.89098999]
[1761815250307,3.42107232,195.22,195.18,6.89098999]
[1761815250523,0.67,195.21,195.18,6.89098999]
[1761815251891,3.82595766,195.21,195.18,6.89098999]
[1761815252411,3.15595766,195.19,195.18,6.89098999]
[1761815252918,0.67,195.21,195.18,6.89098999]
[1761815253126,3.15595766,195.19,195.18,6.89098999]
[1761815255420,3.42107232,195.22,195.18,6.89098999]
[1761815255421,3.15595766,195.2,195.18,7.59098999]
[1761815255622,3.15595766,195.19,195.18,6.89098999]
[1761815257305,2.0202743,195.19,195.18,6.89098999]
[1761815261601,11.64266486,195.19,195.18,6.89098999]
[1761815262205,20.592,195.17,195.09,0.71]
[1761815262516,2.0202743,195.11,195.1,0.71]
[1761815266019,2.0202743,195.12,195.1,0.71]
[1761815266208,4.02941598,195.16,195.1,0.71]
[1761815266209,2.0202743,195.13,195.1,0.71]
[1761815266607,2.0202743,195.12,195.1,0.71]
[1761815266807,2.0202743,195.13,195.1,0.71]
[1761815267521,2.0202743,195.14,195.1,0.71]
[1761815267704,2.0202743,195.13,195.1,0.71]
[1761815268200,2.0202743,195.12,195.1,0.71]
[1761815271829,2.0202743,195.12,195.08,0.71]
[1761815272204,2.0202743,195.1,195.08,0.71]
[1761815275237,2.0202743,195.11,195.08,0.71]
[1761815275436,2.0202743,195.1,195.08,0.71]
[1761815275738,2.0202743,195.1,195.04,2.2202743]
[1761815275933,2.0202743,195.1,195.05,0.71]
[1761815276535,2.0202743,195.09,195.05,5.83675547]
[1761815276903,2.0202743,195.09,195.06,0.71]
[1761815278816,2.0202743,195.09,195.04,0.2]
[1761815278817,2.0202743,195.07,195.04,0.2]
[1761815279142,2.0202743,195.06,195.04,0.2]
[1761815280009,2.0202743,195.06,195.04,0.91]
[1761815280228,24.01192793,195.09,195.04,6.03711348]
[1761815280417,20.592,195.09,195.04,0.2]
[1761815280629,2.0202743,195.05,195.04,0.2]
[1761815281833,5.73638458,195.07,195.04,0.2]
[1761815282037,2.0202743,195.05,195.04,0.2]
[1761815283638,2.6302743,195.05,195.04,0.2]
[1761815284458,0.61,195.05,195.04,0.2]
[1761815284626,2.6302743,195.05,195.04,0.2]
[1761815285238,7.75716484,195.05,195.04,0.2]
[1761815285447,5.7386281,195.05,195.04,0.2]
[1761815285633,7.7589024,195.05,195.04,0.2]
[1761815285829,7.1489024,195.05,195.04,0.2]
[1761815286046,2.5202743,195.05,195.04,0.2]
[1761815286837,2.5202743,195.05,195.04,0.9]
[1761815287535,0.5,195.05,195.04,0.9]
[1761815288347,2.5202743,195.05,195.04,0.9]
[1761815289267,0.5,195.05,195.04,0.9]
[1761815290640,2.5202743,195.05,195.04,0.9]
[1761815291363,0.5,195.05,195.04,0.9]
[1761815292150,2.5202743,195.05,195.04,0.2]
[1761815292477,0.5,195.05,195.04,0.9]
[1761815295040,0.5,195.05,195.04,6.0271534]
[1761815298443,0.5,195.05,195.04,0.9]
[1761815300176,0.5,195.05,195.04,6.0271534]
[1761815303675,0.5,195.05,195.04,0.9]
[1761815304473,0.5,195.05,195.04,8.0474277]
[1761815304786,0.5,195.05,195.04,0.9]
[1761815305983,2.0202743,195.07,195.04,0.9]
[1761815306168,3.42590677,195.08,195.05,0.7]
[1761815306351,2.0202743,195.07,195.05,0.7]
[1761815306751,2.0202743,195.08,195.05,0.7]
[1761815307272,5.44618107,195.08,195.05,0.7]
[1761815309980,3.42590677,195.08,195.05,0.7]
[1761815310778,3.42590677,195.09,195.05,7.84712728]
[1761815311194,3.42590677,195.09,195.06,0.7]
[1761815312594,2.0202743,195.08,195.04,0.9]
[1761815312776,5.44618107,195.08,195.04,0.9]
[1761815313199,6.05618107,195.08,195.04,0.2]
[1761815313888,6.05618107,195.08,195.04,0.9]
[1761815314100,2.6302743,195.08,195.04,0.9]
[1761815314300,5.44618107,195.08,195.04,0.2]
[1761815314507,2.0202743,195.08,195.05,0.7]
[1761815314693,5.44618107,195.08,195.05,0.7]
[1761815315014,3.42590677,195.09,195.05,0.7]
[1761815315184,3.42590677,195.08,195.05,0.7]
[1761815315386,3.42590677,195.07,195.05,0.7]
[1761815315599,3.42590677,195.09,195.05,0.7]
[1761815315806,3.42590677,195.08,195.05,0.7]
[1761815316092,3.42590677,195.07,195.05,5.8267848]
[1761815316404,3.42590677,195.09,195.05,5.8267848]
[1761815316719,3.42590677,195.08,195.06,0.67]
[1761815316890,3.42590677,195.07,195.06,0.67]
[1761815317089,3.42590677,195.09,195.06,0.67]
[1761815317305,3.42590677,195.08,195.06,5.79654629]
[1761815317512,3.42590677,195.07,195.06,5.12654629]
[1761815317706,3.43944924,195.07,195.06,5.12654629]
[1761815317901,3.43944924,195.07,195.06,5.79654629]
[1761815318111,103.4,195.1,195.06,5.79654629]
[1761815318112,3.43944924,195.09,195.06,5.79654629]
[1761815318325,3.43944924,195.08,195.07,0.67]
[1761815320115,7.26368954,195.08,195.07,0.67]
[1761815321715,7.26368954,195.08,195.05,0.67]
[1761815321936,3.43944924,195.07,195.06,0.67]
[1761815322894,3.43944924,195.07,195.04,0.2]
[1761815322895,7.26543438,195.07,195.04,0.2]
[1761815323094,3.43944924,195.06,195.04,0.87]
[1761815323323,3.15916892,195.08,195.05,0.67]
[1761815323620,3.44400122,195.07,195.05,0.67]
[1761815323818,3.44400122,195.06,195.05,0.67]
[1761815324190,3.44400122,195.06,195.04,0.2]
[1761815324389,3.44374762,195.05,195.04,0.87]
[1761815325408,3.44374762,195.05,195.04,5.9971534]
[1761815325601,3.15916892,195.08,195.04,5.9971534]
[1761815325816,7.27005495,195.07,195.05,0.67]
[1761815326011,3.44374762,195.06,195.05,0.67]
[1761815326818,3.44374762,195.06,195.05,5.79689054]
[1761815328931,3.44374762,195.06,195.05,0.67]
[1761815330134,3.44374762,195.06,195.05,8.95605946]
[1761815330705,3.44374762,195.06,195.05,5.12689054]
[1761815330912,3.44374762,195.06,195.05,5.79689054]
[1761815335548,3.44374762,195.06,195.05,0.67]
[1761815338232,3.44374762,195.06,195.04,0.2]
[1761815338435,7.27305427,195.05,195.04,0.2]
[1761815338653,11.04222319,195.05,195.04,0.2]
[1761815339924,10.43222319,195.05,195.04,0.2]
[1761815340129,7.27305427,195.05,195.04,0.2]
[1761815341250,10.43222319,195.05,195.04,0.2]
[1761815341633,7.27305427,195.05,195.04,0.87]
[1761815341947,3.44374762,195.05,195.04,0.87]
[1761815342473,3.44374762,195.05,195.04,10.65882769]
[1761815342757,3.15916892,195.08,195.04,0.87]
[1761815342953,7.27443213,195.07,195.04,0.87]
[1761815343250,3.15916892,195.08,195.04,0.2]
[1761815343251,7.27443213,195.06,195.04,0.2]
[1761815343448,3.44586085,195.05,195.04,0.2]
[1761815343834,3.44586085,195.05,195.04,0.87]
[1761815344741,3.44586085,195.05,195.04,0.2]
[1761815345141,3.44586085,195.05,195.04,0.87]
[1761815345346,7.27533074,195.05,195.04,0.2]
[1761815345650,3.44586085,195.05,195.04,0.87]
[1761815346949,7.27526641,195.05,195.04,0.2]
[1761815347152,3.44586085,195.05,195.04,0.2]
[1761815347461,3.44586085,195.05,195.04,9.14632232]
[1761815347837,4.29931155,195.1,195.04,5.9871534]
[1761815348032,7.2762725,195.09,195.05,0.66]
[1761815348247,3.44666985,195.08,195.06,9.78882769]
[1761815348452,7.45848047,195.13,195.07,3.15916892]
[1761815348669,7.27658932,195.12,195.07,3.81916892]
[1761815348963,7.27658932,195.11,195.08,0.66]
[1761815349149,3.44667066,195.1,195.08,3.81916892]
[1761815349349,3.44667066,195.09,195.08,10.44882769]
[1761815349661,3.44667066,195.09,195.08,14.9149298]
[1761815350181,3.44667066,195.09,195.08,15.5749298]
[1761815350558,3.44667066,195.09,195.08,18.73409872]
[1761815350754,3.44667066,195.09,195.08,15.5749298]
[1761815351146,3.44667066,195.09,195.08,18.73409872]
[1761815352162,3.44667066,195.09,195.08,8.94527103]
[1761815352864,3.44667066,195.13,195.08,8.94527103]
[1761815353051,7.27442647,195.12,195.09,0.66]
[1761815353256,3.44667066,195.11,195.09,0.66]
[1761815353562,3.44667066,195.1,195.09,0.66]
[1761815353757,3.44667066,195.13,195.09,0.66]
[1761815353962,7.27389917,195.12,195.09,0.66]
[1761815354166,3.44667066,195.11,195.09,0.66]
[1761815354358,3.44667066,195.1,195.09,0.66]
[1761815354675,3.44667066,195.13,195.09,0.66]
[1761815354980,7.27331871,195.12,195.09,0.66]
[1761815355274,3.44667066,195.11,195.09,5.78583608]
[1761815355579,3.76916892,195.14,195.09,5.78583608]
[1761815355882,7.26937979,195.13,195.1,3.87916892]
[1761815356085,3.44324945,195.12,195.1,3.87916892]
[1761815356260,3.44324945,195.11,195.1,3.15916892]
[1761815356781,3.44324945,195.11,195.1,3.87916892]
[1761815357276,3.44324945,195.11,195.1,9.00474554]
[1761815357477,3.44324945,195.15,195.1,9.00474554]
[1761815357777,7.26840012,195.14,195.1,9.00474554]
[1761815357964,7.26840012,195.13,195.1,9.00474554]
[1761815358166,3.44324945,195.12,195.11,0.72]
[1761815360961,3.44324945,195.12,195.1,5.12557662]
[1761815361170,3.44324945,195.11,195.1,5.84557662]
[1761815361376,7.21241837,195.14,195.08,5.84594342]
[1761815361572,10.42597062,195.13,195.08,9.00511234]
[1761815361879,3.44324945,195.12,195.08,9.00511234]
[1761815362083,3.44324945,195.11,195.09,0.72]
[1761815362262,3.44324945,195.12,195.09,0.72]
[1761815362560,3.44324945,195.11,195.09,0.72]
[1761815362761,3.44324945,195.12,195.09,0.72]
[1761815363076,3.44324945,195.11,195.09,0.72]
[1761815363283,3.44324945,195.12,195.09,5.84577835]
[1761815363971,3.44324945,195.12,195.02,0.51276792]
[1761815363972,3.15916892,195.1,195.04,0.2]
[1761815364291,3.15916892,195.07,195.06,3.44324945]
[1761815364492,3.15916892,195.07,195.04,0.2]
[1761815364663,6.60241837,195.07,195.04,0.2]
[1761815364868,3.44324945,195.06,195.04,0.2]
[1761815365073,3.44324945,195.05,195.04,0.2]
[1761815365275,3.44324945,195.06,195.04,0.2]
[1761815366382,6.60241837,195.06,195.04,0.2]
[1761815366567,3.15916892,195.06,195.04,0.2]
[1761815366772,6.60241837,195.06,195.04,0.2]
[1761815366970,3.15916892,195.06,195.04,0.2]
[1761815367174,6.60241837,195.06,195.04,0.2]
[1761815367378,3.15916892,195.06,195.04,0.2]
[1761815367693,6.60241837,195.06,195.04,0.2]
[1761815367880,6.60241837,195.07,195.04,0.2]
[1761815368195,3.44324945,195.06,195.05,0.72]
[1761815368486,3.44324945,195.07,195.05,0.72]
[1761815368690,3.15916892,195.08,195.05,0.72]
[1761815368691,3.44324945,195.06,195.05,0.72]
[1761815368896,3.15916892,195.08,195.05,0.72]
[1761815369100,6.59800086,195.07,195.04,5.32713649]
[1761815369276,6.59800086,195.06,195.04,0.2]
[1761815369592,6.59800086,195.05,195.04,0.2]
[1761815370206,7.20800086,195.05,195.04,0.2]
[1761815370572,11.02818937,195.05,195.04,0.2]
[1761815370901,7.20800086,195.05,195.04,0.2]
[1761815371267,11.02796165,195.05,195.04,0.2]
[1761815375784,14.12452879,195.05,195.04,0.2]
[1761815376390,11.02796165,195.05,195.04,0.2]
[1761815377500,10.41796165,195.05,195.04,0.2]
[1761815377703,11.02796165,195.05,195.04,0.2]
[1761815379509,15.01899295,195.05,195.04,0.2]
[1761815383510,35.61099295,195.05,195.04,0.2]
[1761815383813,42.9973873,195.05,195.04,0.2]
[1761815383979,35.61099295,195.05,195.04,0.2]
[1761815384712,38.69829699,195.05,195.04,0.2]
[1761815384892,42.99683692,195.05,195.04,0.2]
[1761815385414,38.69829699,195.05,195.04,0.2]
[1761815386185,38.69745632,195.05,195.04,0.2]
[1761815386406,35.61099295,195.05,195.04,0.2]
[1761815387606,27.85079273,195.05,195.04,0.2]
[1761815387811,20.12760678,195.05,195.04,0.2]
[1761815387995,4.04661936,195.0,194.99,0.2]
[1761815388195,2.02330968,195.0,194.99,0.2]
[1761815388401,3.43883194,195.0,194.99,0.2]
[1761815388642,2.02330968,195.0,194.99,0.2]
[1761815388797,88.20931926,195.0,194.94,0.71]
[1761815388999,2.02330968,194.95,194.94,0.71]
[1761815389223,4.04883194,194.99,194.93,0.71]
[1761815389533,2.02330968,194.98,194.94,0.71]
[1761815389916,2.02330968,194.98,194.94,5.83974278]
[1761815390096,2.02330968,194.98,194.94,0.71]
[1761815390296,20.592,194.99,194.95,0.71]
[1761815390514,20.592,194.99,194.89,7.35440522]
[1761815390515,24.03083194,194.99,194.9,0.71]
[1761815391312,2.02330968,194.95,194.9,2.73330968]
[1761815391723,2.02330968,194.95,194.91,5.84057308]
[1761815392408,2.02330968,194.95,194.92,0.71]
[1761815393902,2.02330968,194.96,194.92,5.84030369]
[1761815394308,2.02330968,194.96,194.93,0.71]
[1761815394909,2.02330968,194.97,194.93,0.71]
[1761815395232,106.81783083,194.99,194.93,0.71]
[1761815395521,2.02330968,194.98,194.93,0.71]
[1761815395724,2.02330968,194.96,194.93,0.71]
[1761815395915,103.4,194.99,194.93,0.71]
[1761815395916,2.02330968,194.95,194.93,0.71]
[1761815397228,104.01,194.99,194.93,0.71]
[1761815397229,2.02330968,194.94,194.93,0.71]
[1761815397540,2.02330968,194.94,194.9,0.71]
[1761815397745,2.02330968,194.91,194.9,0.71]
[1761815399210,2.02330968,194.91,194.89,0.2]
[1761815399420,2.02330968,194.9,194.89,0.91]
[1761815400535,9.15595126,194.95,194.89,0.91]
[1761815400536,3.41636284,194.95,194.89,0.91]
[1761815400738,0.61,194.98,194.89,0.91]
[1761815400739,2.02330968,194.94,194.9,0.71]
[1761815401123,24.0087245,194.97,194.91,2.02330968]
[1761815401429,55.12870529,195.03,194.9,2.73330968]
[1761815401430,2.02330968,194.96,194.9,2.73330968]
[1761815401635,2.02330968,194.96,194.91,0.71]
[1761815401838,2.02330968,194.96,194.91,5.84052633]
[1761815402345,2.02330968,194.96,194.92,0.71]
[1761815405020,2.02330968,194.95,194.92,0.71]
[1761815405862,2.02330968,194.97,194.92,5.84027255]
[1761815406344,2.02330968,194.97,194.93,0.71]
[1761815406516,2.02330968,194.96,194.93,0.71]
[1761815407328,2.02330968,194.95,194.93,0.71]
[1761815408030,2.02330968,194.96,194.93,0.71]
[1761815409747,2.02330968,194.95,194.93,0.71]
[1761815411165,2.02330968,194.94,194.89,0.91]
[1761815411332,2.02330968,194.92,194.9,0.71]
[1761815411539,2.02330968,194.91,194.89,0.2]
[1761815411830,2.02330968,194.92,194.89,0.91]
[1761815412233,2.02330968,194.92,194.9,0.71]
[1761815414738,2.02330968,194.92,194.89,0.2]
[1761815414928,8.54768813,194.95,194.89,0.87]
[1761815414929,2.02330968,194.91,194.89,0.87]
[1761815415442,2.02330968,194.91,194.9,0.67]
[1761815417730,5.44146036,194.94,194.9,5.80081694]
[1761815417930,2.02330968,194.94,194.9,0.67]
[1761815418132,2.02330968,194.94,194.91,0.67]
[1761815418330,5.44146036,194.94,194.91,0.67]
[1761815418550,2.02330968,194.94,194.91,0.67]
[1761815418756,5.44146036,194.94,194.91,0.67]
[1761815418959,2.02330968,194.94,194.91,0.67]
[1761815419133,5.44146036,194.94,194.91,0.67]
[1761815419334,2.02330968,194.94,194.91,0.67]
[1761815419547,2.02330968,194.93,194.91,0.67]
[1761815419735,2.02330968,194.92,194.89,0.87]
[1761815419936,2.02330968,194.92,194.9,0.67]
[1761815420344,5.44146036,194.93,194.9,0.67]
[1761815420544,2.02330968,194.93,194.9,0.67]
[1761815421048,5.44146036,194.93,194.9,0.67]
[1761815421249,2.02330968,194.93,194.9,0.67]
[1761815421763,5.44146036,194.93,194.9,0.67]
[1761815421941,3.41815068,194.95,194.9,5.80083107]
[1761815422147,5.44146036,194.94,194.9,5.80083107]
[1761815422362,3.41815068,194.93,194.91,0.67]
[1761815424361,5.44146036,194.92,194.89,0.2]
[1761815424567,5.44146036,194.92,194.9,0.67]
[1761815424755,2.02330968,194.92,194.9,0.67]
[1761815425244,5.44146036,194.92,194.9,0.67]
[1761815425450,2.02330968,194.92,194.9,0.67]
[1761815425870,5.44146036,194.92,194.9,0.67]
[1761815426072,2.02330968,194.92,194.9,0.67]
[1761815426367,2.02330968,194.92,194.89,0.2]
[1761815426550,3.41815068,194.91,194.89,0.87]
[1761815426951,2.02330968,194.92,194.9,0.67]
[1761815427256,2.02330968,194.92,194.89,0.2]
[1761815427566,3.41815068,194.91,194.89,0.87]
[1761815427964,3.41815068,194.91,194.9,0.67]
[1761815429239,3.41815068,194.91,194.9,5.80083632]
[1761815430252,3.41815068,194.91,194.9,0.67]
[1761815439080,3.41815068,194.91,194.9,5.80083632]
[1761815439888,3.41815068,194.91,194.9,0.67]
[1761815440695,6.58245413,194.91,194.89,0.2]
[1761815441000,3.41815068,194.9,194.89,0.2]
[1761815441295,6.58245413,194.9,194.89,0.2]
[1761815441479,6.58245413,194.9,194.89,0.91]
[1761815441480,3.41815068,194.9,194.89,0.91]
[1761815443198,3.41815068,194.9,194.89,6.04109959]
[1761815443402,3.41815068,194.9,194.89,0.91]
[1761815444004,3.41815068,194.9,194.89,6.04109959]
[1761815444498,3.41815068,194.9,194.89,0.91]
[1761815445390,3.41815068,194.9,194.89,6.04109959]
[1761815448389,3.41815068,194.9,194.89,0.91]
[1761815451507,3.41815068,194.9,194.89,0.2]
[1761815451508,11.02337806,194.9,194.89,0.2]
[1761815451704,10.41337806,194.9,194.89,0.2]
[1761815452009,11.02337806,194.9,194.89,0.2]
[1761815452409,28.20987997,194.9,194.86,0.2]
[1761815452593,16.76902573,194.89,194.86,0.2]
[1761815452794,3.16430345,194.87,194.86,0.2]
[1761815453026,13.57878846,194.87,194.86,0.2]
[1761815453687,23.62349525,194.87,194.86,0.2]
[1761815453902,25.06495539,194.87,194.86,0.2]
[1761815454219,19.32041467,194.87,194.86,0.2]
[1761815454518,15.32341352,194.87,194.86,0.2]
[1761815454721,18.48771697,194.87,194.86,0.2]
[1761815456105,15.32341352,194.87,194.86,0.2]
[1761815456306,18.48771697,194.87,194.86,0.2]
[1761815456615,14.18878846,194.87,194.86,0.2]
[1761815456993,117.58878846,194.87,194.86,0.2]
[1761815459108,114.42337806,194.87,194.86,0.2]
[1761815459491,113.81337806,194.87,194.86,0.2]
[1761815459691,109.98245413,194.87,194.86,0.2]
[1761815460283,106.81815068,194.87,194.86,0.91]
[1761815460899,109.98245413,194.87,194.86,0.91]
[1761815461106,109.98245413,194.87,194.86,0.2]
[1761815461307,109.98245413,194.87,194.86,0.91]
[1761815461691,109.98245413,194.87,194.86,0.2]
[1761815463745,3.41815068,194.87,194.86,0.2]
[1761815463940,6.58245413,194.87,194.86,0.2]
[1761815464239,3.16430345,194.87,194.86,0.91]
[1761815465303,3.16430345,194.87,194.86,0.2]
[1761815466921,6.58245413,194.87,194.86,0.2]
[1761815467122,3.16430345,194.87,194.86,0.2]
[1761815467631,7.19245413,194.87,194.86,0.2]
[1761815467819,3.77430345,194.87,194.86,0.2]
[1761815468021,7.19245413,194.87,194.86,0.2]
[1761815468222,3.77430345,194.87,194.86,0.2]
[1761815468409,7.19245413,194.87,194.86,0.2]
[1761815468610,3.77430345,194.87,194.86,0.2]
[1761815468814,110.59245413,194.87,194.86,0.2]
[1761815469439,109.98245413,194.87,194.86,0.2]
[1761815469833,110.59245413,194.87,194.86,0.2]
[1761815470018,114.40859593,194.87,194.86,0.2]
[1761815470416,110.63429248,194.87,194.86,0.2]
[1761815470624,113.79859593,194.87,194.86,0.2]
[1761815471428,114.40859593,194.87,194.86,0.2]
[1761815471637,119.54022214,194.87,194.86,0.2]
[1761815472016,16.14022214,194.87,194.86,0.2]
[1761815474147,19.26679679,194.87,194.86,0.2]